fUST/lending_fUST_20240102
["ID","MTS","AMOUNT","RATE_DAILY","PERIOD"]
[309819484,1704171051958,-639.94712464,0.0004178,7]
[309819485,1704171051967,-3277.57,0.0004178,7]
[309819486,1704171051977,-500.0,0.0004178,7]
[309819487,1704171051986,-500.0,0.0004178,4]
[309819488,1704171051995,-500.0,0.0004178,7]
[309819489,1704171052005,-607.07533651,0.0004178,7]
[309819490,1704171052014,-310.02156716,0.0004178,7]
[309819491,1704171052024,-356.24399595,0.0004178,7]
[309819492,1704171052033,-500.0,0.0004178,7]
[309819493,1704171052042,-650.72,0.0004178,7]
[309819494,1704171052051,-46120.89,0.0004178,3]
[309819495,1704171052061,-500.0,0.0004178,7]
[309819496,1704171052070,-500.0,0.0004178,7]
[309819497,1704171052080,-500.0,0.0004178,7]
[309819498,1704171052090,-500.0,0.0004178,7]
[309819499,1704171052100,-3554.95,0.0004178,7]
[309819500,1704171052109,-600.42,0.0004178,7]
[309819501,1704171052119,-536.18,0.0004178,7]
[309819502,1704171052128,-9697.41,0.0004178,7]
[309819503,1704171052138,-479.3041618,0.0004178,7]
[309819504,1704171052148,-500.0,0.0004178,7]
[309819505,1704171052157,-510.96560856,0.0004178,7]
[309819506,1704171052167,-3545.35,0.0004178,7]
[309819507,1704171052176,-4099.04,0.0004178,7]
[309819508,1704171052186,-500.0,0.0004178,7]
[309819509,1704171052195,-500.0,0.0004178,7]
[309819510,1704171052206,-2116.77,0.0004178,7]
[309819511,1704171052216,-704.99,0.0004178,7]
[309819512,1704171052226,-500.0,0.0004178,7]
[309819513,1704171052236,-828.81,0.0004178,7]
[309819514,1704171052245,-500.0,0.0004178,7]
[309819515,1704171052254,-953.72,0.0004178,7]
[309819516,1704171052319,-371.7537333,0.0004178,7]
[309819517,1704171052330,-1545.81,0.0004178,7]
[309819518,1704171052340,-619.5,0.0004178,7]
[309819519,1704171052349,-238.0,0.00041783,2]
[309819520,1704171052359,-160.0,0.00041783,2]
[309819521,1704171052369,-250.0,0.00041783,2]
[309819522,1704171052379,-622.1865248,0.00041849,15]
[309819523,1704171052388,-1500.0,0.000419,3]
[309819524,1704171052397,-1187.064326,0.00041917,7]
[309819525,1704171052407,-1187.06433,0.00041917,7]
[309819526,1704171052416,-180.437501,0.00041917,7]
[309819527,1704171052426,-180.437501,0.00041917,7]
[309819528,1704171052435,-500.0,0.00041917,7]
[309819529,1704171052446,-615.72,0.00041917,7]
[309819530,1704171052455,-500.0,0.00041917,7]
[309819531,1704171052462,-1112.69,0.00041917,7]
[309819532,1704171052472,-500.0,0.00041917,2]
[309819533,1704171052483,-500.0,0.00041917,7]
[309819534,1704171052494,-2271.02,0.00041917,7]
[309819535,1704171052503,-950.37,0.00041917,7]
[309819536,1704171052512,-3277.57,0.00041917,7]
[309819537,1704171052522,-500.0,0.00041917,7]
[309819538,1704171052530,-500.0,0.00041917,4]
[309819539,1704171052540,-500.0,0.00041917,7]
[309819540,1704171052549,-500.0,0.00041917,7]
[309819541,1704171052558,-650.72,0.00041917,7]
[309819542,1704171052568,-46120.89,0.00041917,3]
[309819543,1704171052577,-500.0,0.00041917,7]
[309819544,1704171052588,-497.87121471,0.00041917,7]
[309819545,1704171052598,-500.0,0.00041917,7]
[309819546,1704171052608,-3554.95,0.00041917,7]
[309819547,1704171052619,-600.42,0.00041917,7]
[309819548,1704171052628,-536.18,0.00041917,7]
[309819549,1704171052638,-9697.41,0.00041917,7]
[309819550,1704171052647,-500.0,0.00041917,7]
[309819551,1704171052657,-3545.35,0.00041917,7]
[309819552,1704171052666,-4099.04,0.00041917,7]
[309819553,1704171052675,-240.04252248,0.00041917,7]
[309819554,1704171052684,-500.0,0.00041917,7]
[309819555,1704171052698,-2116.77,0.00041917,7]
[309819556,1704171052707,-704.99,0.00041917,7]
[309819557,1704171052716,-500.0,0.00041917,7]
[309819558,1704171052726,-828.81,0.00041917,7]
[309819559,1704171052735,-500.0,0.00041917,7]
[309819560,1704171052744,-953.72,0.00041917,7]
[309819561,1704171052753,-1545.81,0.00041917,7]
[309819562,1704171052763,-619.5,0.00041917,7]
[309819563,1704171052772,-1000.0,0.00041951,7]
[309819564,1704171052781,-682.30225901,0.00041956,4]
[309819565,1704171052790,-200.52,0.00042,4]
[309819566,1704171052799,-984.0,0.00042,15]
[309819567,1704171052808,-9209.0,0.00042,15]
[309819568,1704171052818,-525.0,0.00042,15]
[309819569,1704171052827,-1000.0,0.00042031,7]
[309819570,1704171052836,-180.437501,0.00042054,7]
[309819571,1704171052846,-180.437501,0.00042054,7]
[309819572,1704171052855,-500.0,0.00042054,7]
[309819573,1704171052863,-615.72,0.00042054,7]
[309819574,1704171052873,-500.0,0.00042054,7]
[309819575,1704171052881,-1112.69,0.00042054,7]
[309819576,1704171052890,-500.0,0.00042054,2]
[309819577,1704171052900,-242.4554599,0.00042054,7]
[309819578,1704171052909,-2271.02,0.00042054,7]
[309819579,1704171052918,-950.37,0.00042054,7]
[309819580,1704171052927,-3277.57,0.00042054,7]
[309819581,1704171052936,-500.0,0.00042054,7]
[309819582,1704171052946,-500.0,0.00042054,4]
[309819583,1704171052955,-500.0,0.00042054,7]
[309819584,1704171052965,-500.0,0.00042054,7]
[309819585,1704171052974,-650.72,0.00042054,7]
[309819586,1704171052983,-46120.89,0.00042054,3]
[309819587,1704171052992,-500.0,0.00042054,7]
[309819588,1704171053003,-500.0,0.00042054,7]
[309819589,1704171053012,-3554.95,0.00042054,7]
[309819590,1704171053021,-600.42,0.00042054,7]
[309819591,1704171053030,-536.18,0.00042054,7]
[309819592,1704171053040,-9697.41,0.00042054,7]
[309819593,1704171053049,-500.0,0.00042054,7]
[309819594,1704171053059,-3545.35,0.00042054,7]
[309819595,1704171053068,-4099.04,0.00042054,7]
[309819596,1704171053077,-500.0,0.00042054,7]
[309819597,1704171053087,-2116.77,0.00042054,7]
[309819598,1704171053096,-704.99,0.00042054,7]
[309819599,1704171053106,-500.0,0.00042054,7]
[309819600,1704171053115,-828.81,0.00042054,7]
[309819601,1704171053124,-500.0,0.00042054,7]
[309819602,1704171053133,-953.72,0.00042054,7]
[309819603,1704171053143,-1545.81,0.00042054,7]
[309819604,1704171053152,-619.5,0.00042054,7]
[309819605,1704171053161,-155.01075224,0.00042087,4]
[309819606,1704171053170,-495.97252479,0.00042087,4]
[309819607,1704171053180,-301.81890865,0.00042087,4]
[309819608,1704171053190,-500.0,0.00042095,30]
[309819609,1704171053199,-340.77155324,0.00042095,30]
[309819610,1704171053208,-500.0,0.00042095,30]
[309819611,1704171053218,-437.84042729,0.00042095,30]
[309819612,1704171053228,-500.0,0.00042095,30]
[309819613,1704171053237,-500.0,0.00042095,30]
[309819614,1704171053246,-500.0,0.00042095,30]
[309819615,1704171053255,-500.0,0.00042095,30]
[309819616,1704171053265,-486.12619658,0.00042095,30]
[309819617,1704171053275,-500.0,0.00042095,30]
[309819618,1704171053284,-365.45131332,0.00042095,30]
[309819619,1704171053294,-500.0,0.00042095,30]
[309819620,1704171053303,-500.0,0.00042095,30]
[309819621,1704171053313,-500.0,0.00042095,30]
[309819622,1704171053322,-300.0,0.000421,22]
[309819623,1704171053332,-151.0,0.00042104,21]
[309819624,1704171053341,-300.49962244,0.00042123,7]
[309819625,1704171053350,-150.0,0.00042129,60]
[309819626,1704171053360,-211.47597199,0.0004216,7]
[309819627,1704171053369,-155.364495,0.00042187,2]
[309819628,1704171053378,-213.65969948,0.00042188,4]
[309819629,1704171053387,-739.93806711,0.00042189,2]
[309819630,1704171053397,-155.06147736,0.00042189,4]
[309819631,1704171053407,-155.45238976,0.00042189,4]
[309819632,1704171053416,-769.36826896,0.0004219,4]
[309819633,1704171053425,-204.50356762,0.0004219,4]
[309819634,1704171053434,-1000.0,0.00042191,2]
[309819635,1704171053443,-3409.78185252,0.00042191,4]
[309819636,1704171053452,-5936.35471714,0.00042191,4]
[309819637,1704171053462,-615.72,0.00042191,7]
[309819638,1704171053472,-500.0,0.00042191,7]
[309819639,1704171053481,-1112.69,0.00042191,7]
[309819640,1704171053490,-502.22108478,0.00042191,2]
[309819641,1704171053499,-2271.02,0.00042191,7]
[309819642,1704171053508,-950.37,0.00042191,7]
[309819643,1704171053518,-3277.57,0.00042191,7]
[309819644,1704171053527,-500.0,0.00042191,7]
[309819645,1704171053536,-500.0,0.00042191,4]
[309819646,1704171053545,-500.0,0.00042191,7]
[309819647,1704171053555,-500.0,0.00042191,7]
[309819648,1704171053564,-650.72,0.00042191,7]
[309819649,1704171053573,-46120.89,0.00042191,3]
[309819650,1704171053582,-500.0,0.00042191,7]
[309819651,1704171053591,-500.0,0.00042191,7]
[309819652,1704171053601,-2765.24,0.00042191,66]
[309819653,1704171053610,-3554.95,0.00042191,7]
[309819654,1704171053667,-600.42,0.00042191,7]
[309819655,1704171053682,-536.18,0.00042191,7]
[309819656,1704171053691,-9697.41,0.00042191,7]
[309819657,1704171053701,-583.57222015,0.00042191,7]
[309819658,1704171053714,-3545.35,0.00042191,7]
[309819659,1704171053723,-4099.04,0.00042191,7]
[309819660,1704171053733,-500.0,0.00042191,7]
[309819661,1704171053743,-2116.77,0.00042191,7]
[309819662,1704171053752,-704.99,0.00042191,7]
[309819663,1704171053761,-500.0,0.00042191,7]
[309819664,1704171053771,-828.81,0.00042191,7]
[309819665,1704171053781,-500.0,0.00042191,7]
[309819666,1704171053791,-953.72,0.00042191,7]
[309819667,1704171053800,-1545.81,0.00042191,7]
[309819668,1704171053810,-619.5,0.00042191,7]
[309819669,1704171053819,-732.0,0.00042192,4]
[309819670,1704171053829,-155.0,0.0004229,2]
[309819671,1704171053838,-155.47339623,0.00042324,4]
[309819672,1704171053847,-155.54479063,0.00042324,4]
[309819673,1704171053857,-1146.73360675,0.00042324,2]
[309819674,1704171053866,-157.40415251,0.00042324,4]
[309819675,1704171053875,-231.36580499,0.00042324,4]
[309819676,1704171053885,-174.89369,0.00042325,30]
[309819677,1704171053894,-195.17685847,0.00042326,4]
[309819678,1704171053903,-154.84515485,0.00042326,4]
[309819679,1704171053912,-244.17060397,0.00042326,4]
[309819680,1704171053922,-166.95305096,0.00042326,4]
[309819681,1704171053936,-867.62948429,0.00042326,4]
[309819682,1704171053966,-155.38608327,0.00042326,4]
[309819683,1704171053976,-283.82704819,0.00042327,4]
[309819684,1704171053985,-180.437501,0.00042328,7]
[309819685,1704171053994,-180.437501,0.00042328,7]
[309819686,1704171054004,-615.72,0.00042328,7]
[309819687,1704171054018,-500.0,0.00042328,7]
[309819688,1704171054031,-1112.69,0.00042328,7]
[309819689,1704171054041,-2271.02,0.00042328,7]
[309819690,1704171054050,-950.37,0.00042328,7]
[309819691,1704171054059,-3277.57,0.00042328,7]
[309819692,1704171054068,-500.0,0.00042328,7]
[309819693,1704171054077,-500.0,0.00042328,4]
[309819694,1704171054087,-500.0,0.00042328,7]
[309819695,1704171054097,-500.0,0.00042328,7]
[309819696,1704171054107,-650.72,0.00042328,7]
[309819697,1704171054117,-46120.89,0.00042328,3]
[309819698,1704171054127,-3554.95,0.00042328,7]
[309819699,1704171054137,-600.42,0.00042328,7]
[309819700,1704171054146,-536.18,0.00042328,7]
[309819701,1704171054156,-9697.41,0.00042328,7]
[309819702,1704171054165,-3545.35,0.00042328,7]
[309819703,1704171054175,-4099.04,0.00042328,7]
[309819704,1704171054185,-500.0,0.00042328,7]
[309819705,1704171054194,-2116.77,0.00042328,7]
[309819706,1704171054203,-704.99,0.00042328,7]
[309819707,1704171054212,-500.0,0.00042328,7]
[309819708,1704171054221,-828.81,0.00042328,7]
[309819709,1704171054230,-500.0,0.00042328,7]
[309819710,1704171054240,-953.72,0.00042328,7]
[309819711,1704171054249,-1545.81,0.00042328,7]
[309819712,1704171054259,-619.5,0.00042328,7]
[309819713,1704171054268,-150.28,0.00042455,7]
[309819714,1704171054278,-180.437501,0.00042465,7]
[309819715,1704171054287,-180.437501,0.00042465,7]
[309819716,1704171054297,-3598.55056422,0.00042465,2]
[309819717,1704171054308,-3598.55056422,0.00042465,2]
[309819718,1704171054318,-3598.55056422,0.00042465,2]
[309819719,1704171054327,-3598.55056422,0.00042465,2]
[309819720,1704171054336,-3598.55056422,0.00042465,2]
[309819721,1704171054346,-3598.55056422,0.00042465,2]
[309819722,1704171054356,-3598.55056422,0.00042465,2]
[309819723,1704171054365,-3598.55056422,0.00042465,2]
[309819724,1704171054374,-3598.55056422,0.00042465,2]
[309819725,1704171054383,-3598.55056422,0.00042465,2]
[309819726,1704171054395,-615.72,0.00042465,7]
[309819727,1704171054404,-500.0,0.00042465,7]
[309819728,1704171054413,-1112.69,0.00042465,7]
[309819729,1704171054422,-2271.02,0.00042465,7]
[309819730,1704171054431,-950.37,0.00042465,7]
[309819731,1704171054440,-180.39175735,0.00042465,3]
[309819732,1704171054449,-3277.57,0.00042465,7]
[309819733,1704171054459,-500.0,0.00042465,7]
[309819734,1704171054469,-500.0,0.00042465,4]
[309819735,1704171054478,-500.0,0.00042465,7]
[309819736,1704171054487,-500.0,0.00042465,7]
[309819737,1704171054497,-650.72,0.00042465,7]
[309819738,1704171054506,-46120.89,0.00042465,3]
[309819739,1704171054516,-500.0,0.00042465,15]
[309819740,1704171054526,-3554.95,0.00042465,7]
[309819741,1704171054535,-600.42,0.00042465,7]
[309819742,1704171054544,-536.18,0.00042465,7]
[309819743,1704171054554,-9697.41,0.00042465,7]
[309819744,1704171054567,-3545.35,0.00042465,7]
[309819745,1704171054578,-4099.04,0.00042465,7]
[309819746,1704171054588,-500.0,0.00042465,7]
[309819747,1704171054598,-2116.77,0.00042465,7]
[309819748,1704171054607,-704.99,0.00042465,7]
[309819749,1704171054618,-500.0,0.00042465,7]
[309819750,1704171054627,-828.81,0.00042465,7]
[309819751,1704171054636,-480.61737042,0.00042465,7]
[309819752,1704171054645,-953.72,0.00042465,7]
[309819753,1704171054654,-1545.81,0.00042465,7]
[309819754,1704171054663,-619.5,0.00042465,7]
[309819755,1704171054672,-180.437501,0.00042602,7]
[309819756,1704171054681,-180.437501,0.00042602,7]
[309819757,1704171054690,-615.72,0.00042602,7]
[309819758,1704171054699,-500.0,0.00042602,7]
[309819759,1704171054708,-1112.69,0.00042602,7]
[309819760,1704171054717,-2271.02,0.00042602,7]
[309819761,1704171054726,-950.37,0.00042602,7]
[309819762,1704171054736,-3277.57,0.00042602,7]
[309819763,1704171054744,-500.0,0.00042602,7]
[309819764,1704171054754,-562.05339784,0.00042602,4]
[309819765,1704171054762,-500.0,0.00042602,7]
[309819766,1704171054771,-500.0,0.00042602,7]
[309819767,1704171054780,-650.72,0.00042602,7]
[309819768,1704171054790,-46120.89,0.00042602,3]
[309819769,1704171054799,-3554.95,0.00042602,7]
[309819770,1704171054810,-600.42,0.00042602,7]
[309819771,1704171054820,-536.18,0.00042602,7]
[309819772,1704171054831,-9697.41,0.00042602,7]
[309819773,1704171054840,-3545.35,0.00042602,7]
[309819774,1704171054850,-4099.04,0.00042602,7]
[309819775,1704171054862,-500.0,0.00042602,7]
[309819776,1704171054872,-2116.77,0.00042602,7]
[309819777,1704171054882,-704.99,0.00042602,7]
[309819778,1704171054891,-500.0,0.00042602,7]
[309819779,1704171054901,-828.81,0.00042602,7]
[309819780,1704171054911,-953.72,0.00042602,7]
[309819781,1704171054924,-1545.81,0.00042602,7]
[309819782,1704171054983,-619.5,0.00042602,7]
[309819783,1704171054992,-245.6930669,0.000427,30]
[309819784,1704171055002,-615.72,0.00042739,7]
[309819785,1704171055012,-500.0,0.00042739,7]
[309819786,1704171055021,-1112.69,0.00042739,7]
[309819787,1704171055031,-1761.52920128,0.00042739,7]
[309819789,1704171223683,232.18857637,0.00021,2]
[309819791,1704171265692,8491.84706025,0.00021,2]
[309819792,1704171266905,193.66273292,0.00021,2]
[309819793,1704171268721,5210.01915065,0.00021,2]
[309819794,1704171282726,5209.98951003,0.00021,2]
[309819795,1704171295937,276.5020075,0.000189,2]
[309819796,1704171345177,-2446.22480126,0.00032,50]
[309819797,1704171345206,-3616.46905044,0.00034997,120]
[309819798,1704171345230,-2463.56450392,0.000375,30]
[309819799,1704171345252,-621.26586189,0.00038,120]
[309819800,1704171345275,-22304.8150058,0.0004,120]
[309819801,1704171345298,-332.999999,0.0004,120]
[309819802,1704171345324,-223.0,0.00041139,30]
[309819803,1704171345353,-1594.30242962,0.000424,120]
[309819804,1704171345377,-1080.4516,0.00042786,30]
[309819805,1704171345402,-314.31668422,0.00043,30]
[309819806,1704171345424,-424.92882025,0.00043,120]
[309819807,1704171345446,-153.0,0.00043,90]
[309819808,1704171345470,-174.89369,0.00043008,30]
[309819809,1704171345496,-2000.0,0.00043381,120]
[309819810,1704171345524,-1207.27563462,0.00043878,30]
[309819811,1704171345549,-286.54513133,0.00043999,30]
[309819812,1704171345588,-184.07715532,0.00043999,30]
[309819813,1704171345612,-1768.88783642,0.00044,90]
[309819814,1704171345636,-183.80230966,0.00044,120]
[309819815,1704171345662,-2000.0,0.0004426,30]
[309819816,1704171345686,-29307.34724634,0.00045,60]
[309819817,1704171345710,-530.0,0.00045,30]
[309819818,1704171345733,-2054.19360318,0.00045,30]
[309819819,1704171345757,-172.608556,0.00045049,30]
[309819820,1704171345781,-294.0,0.0004553,30]
[309819821,1704171345804,-294.0,0.0004554,30]
[309819822,1704171345828,-294.0,0.0004554,30]
[309819823,1704171345851,-294.0,0.0004555,30]
[309819824,1704171345876,-294.0,0.0004555,30]
[309819825,1704171345901,-323085.03008073,0.00045583,90]
[309819827,1704171352704,-400000.0,0.00045583,90]
[309819830,1704171357822,-335483.63262579,0.00045583,90]
[309819831,1704171357846,-2301.0,0.00045616,30]
[309819832,1704171357868,-3180.5286,0.00045786,30]
[309819833,1704171357891,-1236.0,0.00045949,47]
[309819834,1704171357914,-1000.0,0.00046,46]
[309819835,1704171357936,-5005.30320738,0.00046,30]
[309819836,1704171357958,-4301.0,0.00046301,30]
[309819837,1704171357983,-814.9,0.0004648,60]
[309819838,1704171358005,-808.0,0.0004649,60]
[309819839,1704171358028,-528.31788243,0.000465,30]
[309819840,1704171359046,2815.50229019,0.00041367,30]
[309819841,1704171359080,2164.39802528,0.00041367,120]
[309819850,1704171730145,150.92453773,0.00029991,120]
[309819863,1704172216942,150.92453773,0.00029805,120]
[309819895,1704172232032,-154.92253873,0.0002531,2]
[309819896,1704172232043,-300.68220091,0.00025311,2]
[309819897,1704172232053,-235.2722466,0.00025312,2]
[309819898,1704172232062,-24.91892799,0.00025312,2]
[309819998,1704172238243,-162.44234547,0.0002531,2]
[309820000,1704172238253,-154.92253873,0.0002531,2]
[309820002,1704172238262,-196.299615,0.0002531,2]
[309820004,1704172238271,-2006.25585389,0.00025312,2]
[309820006,1704172238280,-160.83720431,0.00025313,2]
[309820008,1704172238290,-2989.40003667,0.00025313,2]
[309820010,1704172238299,-1192.95254363,0.00025313,2]
[309820012,1704172238308,-328.21739259,0.00025314,2]
[309820014,1704172238317,-154.92253873,0.00025314,2]
[309820016,1704172238326,-155.45699994,0.00025334,2]
[309820018,1704172238335,-13669.99879992,0.00025334,2]
[309820020,1704172238344,-8750.3382016,0.00025335,2]
[309820022,1704172238357,-16149.6617984,0.00025335,2]
[309820024,1704172238366,-768.618502,0.00026301,2]
[309820026,1704172238375,-768.618502,0.00027275,2]
[309820028,1704172238384,-17621.84278842,0.000274,2]
[309820030,1704172238393,-12400.96211297,0.000275,2]
[309820032,1704172238402,-200.0,0.00027854,15]
[309820034,1704172238412,-1530.9193307,0.00027998,2]
[309820036,1704172238421,-781.72443064,0.00028247,2]
[309820038,1704172238430,-768.618502,0.00028248,2]
[309820040,1704172238442,-829.33057934,0.00029,2]
[309820043,1704172238452,-729.69216438,0.00029179,2]
[309820044,1704172238461,-768.618502,0.00029221,2]
[309820046,1704172238471,-3214.10722018,0.00029279,2]
[309820048,1704172238482,-3384.1862163,0.00029991,2]
[309820050,1704172238491,-2207.49915554,0.00029991,2]
[309820052,1704172238500,-300.0,0.00029991,2]
[309820054,1704172238509,-215.68617952,0.0003,2]
[309820056,1704172238519,-768.618502,0.00030194,2]
[309820058,1704172238529,-150.92453773,0.00030414,30]
[309820060,1704172238538,-280.0,0.00030639,15]
[309820061,1704172238548,-150.92453773,0.00031034,7]
[309820062,1704172238557,-150.92453773,0.00031668,4]
[309820063,1704172238566,-661.65329738,0.00031823,2]
[309820064,1704172238575,-216.47365635,0.00032,10]
[309820065,1704172238584,-729.69216437,0.00032108,2]
[309820066,1704172238593,-150.92453773,0.00032314,2]
[309820067,1704172238602,-205.29296738,0.00032789,20]
[309820068,1704172238611,-874.48271927,0.00032789,4]
[309820069,1704172238620,-686.7472763,0.00033,3]
[309820070,1704172238629,-4758.69672081,0.00034,2]
[309820071,1704172238638,-1000.0,0.00034647,7]
[309820073,1704172238647,-238.6625714,0.00034648,2]
[309820075,1704172238656,-155.6849062,0.00034998,4]
[309820077,1704172238666,-261.15364778,0.00034999,4]
[309820079,1704172238675,-501.86850669,0.00035,7]
[309820081,1704172238684,-9304.29587217,0.00035,3]
[309820082,1704172238693,-590.09569667,0.00035,2]
[309820083,1704172238702,-154.92253873,0.00035035,4]
[309820085,1704172238711,-3537.57585844,0.00035036,2]
[309820087,1704172238720,-729.69216437,0.00035037,2]
[309820088,1704172238729,-465.0,0.00035452,2]
[309820089,1704172238738,-1245.02,0.00035566,3]
[309820090,1704172238748,-1037.52,0.00035566,3]
[309820091,1704172238757,-863.84,0.00035576,3]
[309820092,1704172238766,-1494.02,0.00035606,3]
[309820093,1704172238775,-2900.734855,0.00035616,120]
[309820094,1704172238785,-150.92453773,0.00035904,2]
[309820095,1704172238795,-250.36569715,0.00035904,2]
[309820096,1704172238805,-301.84907546,0.00036508,4]
[309820097,1704172238814,-154.92253873,0.00037,4]
[309820098,1704172238823,-603.69815092,0.00037121,7]
[309820099,1704172238832,-3196.351949,0.00037245,2]
[309820100,1704172238842,-209.44162842,0.00037245,2]
[309820101,1704172238851,-953.89360147,0.00037245,2]
[309820102,1704172238860,-200.00922607,0.00037245,2]
[309820103,1704172238869,-185.0395006,0.00037245,2]
[309820104,1704172238879,-166.91046477,0.00037745,4]
[309820105,1704172238889,-190.18136167,0.00037897,5]
[309820106,1704172238899,-729.69216437,0.00037966,2]
[309820107,1704172238908,-621.26586189,0.00038,120]
[309820108,1704172238917,-1207.39630185,0.00038061,30]
[309820109,1704172238926,-500.0,0.00038356,2]
[309820110,1704172238935,-515.0,0.0003874,2]
[309820111,1704172238944,-300.0,0.00039,2]
[309820112,1704172238953,-1500.0,0.000399,2]
[309820113,1704172238962,-155.0,0.00040368,2]
[309820114,1704172238972,-3056.12615138,0.00040798,6]
[309820115,1704172238981,-729.69216437,0.00040895,2]
[309820116,1704172238990,-1500.0,0.000409,3]
[309820117,1704172238999,-682.30225901,0.00040927,4]
[309820118,1704172239083,-622.0,0.0004094,60]
[309820119,1704172239092,-150.0,0.0004094,60]
[309820120,1704172239102,-622.0,0.0004095,60]
[309820121,1704172239111,-150.0,0.0004095,60]
[309820122,1704172239120,-174.893693,0.0004096,2]
[309820123,1704172239130,-174.89369,0.0004096,2]
[309820124,1704172239139,-575.78551942,0.0004096,60]
[309820136,1704172244679,-403.98760198,0.00040959,2]
[309820137,1704172244689,-46.21448058,0.0004096,60]
[309820138,1704172244699,-150.28,0.0004096,7]
[309820139,1704172244709,-150.0,0.0004096,60]
[309820140,1704172244718,-389.25610389,0.00040966,7]
[309820141,1704172244727,-242.18796839,0.00040967,2]
[309820142,1704172244736,-286.4552886,0.00040968,4]
[309820143,1704172244745,-241.09763242,0.00040968,4]
[309820144,1704172244754,-712.07325241,0.00040968,4]
[309820145,1704172244764,-527.66658605,0.00040968,4]
[309820180,1704173432284,-10473.05577926,0.00029066,2]
[309820181,1704173432293,-154.92253873,0.00029066,2]
[309820183,1704173432303,-675.69429378,0.00029066,2]
[309820185,1704173432312,-1575.79265476,0.00029067,2]
[309820187,1704173432321,-2026.57814012,0.00029067,2]
[309820189,1704173432330,-781.72443064,0.00029068,2]
[309820190,1704173432339,-13669.99879992,0.00029068,2]
[309820192,1704173432348,-160.83720431,0.00029068,2]
[309820194,1704173432357,-154.92253873,0.00029069,2]
[309820196,1704173432366,-2989.40003667,0.00029069,2]
[309820198,1704173432375,-24274.6254108,0.0002907,2]
[309820200,1704173432384,-2031.17478188,0.00029339,2]
[309820202,1704173432393,-253.50303766,0.00029347,7]
[309820204,1704173432403,-706.833057,0.00029357,2]
[309820205,1704173432411,-203.247678,0.00029424,2]
[309820207,1704173432421,-207.948756,0.00030026,2]
[309820209,1704173432430,-6862.34041516,0.00030726,10]
[309820210,1704173432439,-645.221581,0.00031029,2]
[309820211,1704173432449,-207.948756,0.00032248,2]
[309820212,1704173432458,-150.92453773,0.00033015,120]
[309820213,1704173432467,-313.58750165,0.00033027,4]
[309820214,1704173432476,-360.09581363,0.00033034,2]
[309820215,1704173432485,-150.92453773,0.00033689,30]
[309820216,1704173432495,-1000.0,0.00034,7]
[309820217,1704173432505,-150.92453773,0.00034376,7]
[309820218,1704173432516,-207.948756,0.0003447,2]
[309820219,1704173432526,-174.6074496,0.00034684,2]
[309820220,1704173432536,-2298.44,0.0003499,3]
[309820221,1704173432545,-590.09569667,0.00035,2]
[309820222,1704173432556,-154.92253873,0.00035,4]
[309820223,1704173432566,-3339.01697307,0.00035,2]
[309820226,1704173438473,-198.55888537,0.00035,2]
[309820227,1704173438482,-150.92453773,0.00035078,4]
[309820228,1704173438491,-690.0,0.00035452,2]
[309820229,1704173438500,-13058.77946176,0.000355,14]
[309820230,1704173438509,-583.75373152,0.00035516,2]
[309820231,1704173438518,-2984.349609,0.00035616,120]
[309820232,1704173438527,-150.92453773,0.00035794,2]
[309820233,1704173438536,-6208.59095474,0.00035961,2]
[309820234,1704173438545,-583.75373149,0.00036612,2]
[309820235,1704173438555,-154.92253873,0.00037,4]
[309820236,1704173438565,-245.96259799,0.00037245,2]